bitfinex-derivatives/quotes_ETHF0:USTF0_20260131
["timestamp","ask_amount","ask_price","bid_price","bid_amount"]
[1769873106003,3.8988426,2541.8,2539.9,3.77114386]
[1769873109012,3.8988426,2541.8,2539.4,0.1972]
[1769873109013,3.65017682,2541.6,2539.6,3.90488941]
[1769873109800,3.84720682,2541.6,2539.6,3.90488941]
[1769873110310,3.65017682,2541.2,2539.3,3.90488941]
[1769873110513,1.92105263,2541.3,2539.3,3.90488941]
[1769873110514,3.65017682,2541.0,2539.3,3.90488941]
[1769873111210,3.65017682,2541.0,2539.1,3.55030296]
[1769873111805,3.84724682,2541.0,2539.1,3.55030296]
[1769873112709,3.84724682,2541.0,2539.1,0.00330296]
[1769873113013,3.65017682,2540.8,2539.1,0.00330296]
[1769873113212,3.65017682,2540.3,2539.1,0.00330296]
[1769873113511,0.19712,2540.4,2539.1,0.00330296]
[1769873113512,3.65017682,2540.1,2539.1,0.00330296]
[1769873114104,3.65017682,2539.9,2538.3,3.90488941]
[1769873115108,3.65497213,2539.9,2538.3,3.90805327]
[1769873116516,3.65497213,2539.9,2538.3,0.00316386]
[1769873116813,3.85213213,2539.9,2538.3,0.00316386]
[1769873117017,3.85213213,2539.9,2538.3,3.90805327]
[1769873118306,3.65497213,2539.9,2538.3,3.90805327]
[1769873119802,3.85213213,2539.9,2538.3,3.90805327]
[1769873120002,3.65497213,2539.9,2538.3,0.00316386]
[1769873120209,3.65017682,2539.7,2538.3,0.00316386]
[1769873120407,0.00479531,2539.9,2538.8,3.90488941]
[1769873120620,3.84726682,2540.8,2538.9,3.90488941]
[1769873120910,3.65017682,2540.6,2538.9,3.90488941]
[1769873121211,3.65017682,2540.4,2538.4,3.90488941]
[1769873121512,3.65017682,2540.3,2538.4,3.90488941]
[1769873122812,3.65017682,2540.3,2538.6,3.90488941]
[1769873123008,3.65017682,2540.3,2538.6,4.10214941]
[1769873124014,1.92105263,2541.1,2538.6,4.10214941]
[1769873124015,2.34860379,2542.8,2540.8,3.90488941]
[1769873124216,3.547,2543.7,2541.5,4.10191941]
[1769873124413,3.547,2543.7,2542.0,3.90488941]
[1769873124606,2.311,2543.8,2542.0,3.90488941]
[1769873125007,2.31422575,2543.8,2542.0,3.908389]
[1769873125210,0.00322575,2543.8,2542.0,3.908389]
[1769873125407,5.86022575,2543.8,2542.0,3.908389]
[1769873125911,0.06843153,2544.8,2542.0,3.908389]
[1769873126223,3.65017682,2547.6,2544.4,0.1968]
[1769873126409,4.64284851,2548.2,2543.1,0.19691]
[1769873126410,3.65017682,2546.7,2544.5,4.10168941]
[1769873126614,3.65017682,2546.7,2545.5,3.90488941]
[1769873126917,3.65017682,2546.5,2545.5,0.00315433]
[1769873127310,3.65017682,2546.3,2544.6,3.90488941]
[1769873127516,3.65017682,2546.3,2544.2,3.90488941]
[1769873127716,3.65017682,2546.3,2543.6,3.90488941]
[1769873128418,3.65017682,2546.1,2543.6,3.90488941]
[1769873128615,3.65017682,2545.7,2543.1,3.90488941]
[1769873129415,3.65017682,2545.5,2543.1,3.90488941]
[1769873129621,3.65017682,2545.3,2542.6,3.90488941]
[1769873129824,3.65017682,2545.1,2542.6,3.90832964]
[1769873130126,3.65017682,2544.9,2542.6,3.90832964]
[1769873130326,3.65514313,2544.9,2542.6,3.90832964]
[1769873130927,3.65017682,2544.7,2542.6,3.90832964]
[1769873131827,3.65017682,2544.7,2542.6,0.00344023]
[1769873132425,3.65017682,2544.5,2542.6,0.00344023]
[1769873132729,3.84699682,2544.3,2541.8,3.90488941]
[1769873133425,3.65017682,2544.1,2541.8,3.90488941]
[1769873133626,3.65017682,2544.1,2541.8,3.9090196]
[1769873134125,3.65017682,2544.7,2542.4,0.19696]
[1769873134327,3.65017682,2544.8,2542.5,3.90488941]
[1769873134631,5.852,2544.7,2542.9,3.90488941]
[1769873134830,3.65017682,2544.8,2542.9,3.90488941]
[1769873135028,3.543,2544.7,2543.1,3.90488941]
[1769873135327,0.00496631,2544.9,2542.0,2.55186599]
[1769873135328,0.00496631,2544.9,2543.5,3.90488941]
[1769873135529,3.65017682,2546.1,2544.2,3.90488941]
[1769873135722,0.3114361,2547.3,2542.7,4.86086599]
[1769873135723,3.65017682,2545.9,2542.7,4.86086599]
[1769873135919,3.65017682,2545.7,2544.0,3.90488941]
[1769873136526,3.65432922,2545.7,2544.0,3.90767288]
[1769873137229,3.76890478,2547.0,2545.1,3.91987722]
[1769873137527,2.308,2546.9,2545.1,4.11662722]
[1769873137721,3.76890478,2546.8,2544.7,3.91987722]
[1769873138126,3.77177642,2546.8,2544.7,3.91987722]
[1769873138332,3.84014759,2546.8,2544.7,3.91987722]
[1769873138726,3.84014759,2546.8,2544.4,0.19681]
[1769873138932,3.76890478,2546.6,2544.4,4.11668722]
[1769873139322,7.30990478,2546.5,2544.9,3.91987722]
[1769873139521,0.00287164,2546.8,2544.9,3.91987722]
[1769873139725,3.541,2546.7,2545.2,3.91987722]
[1769873140033,2.327,2546.6,2545.2,3.91987722]
[1769873140434,0.00287164,2546.8,2545.2,3.91987722]
[1769873140631,3.70657586,2546.6,2544.3,3.90521101]
[1769873141130,3.70657586,2546.6,2543.8,3.90521101]
[1769873141337,3.90325586,2546.1,2543.4,3.90521101]
[1769873141833,0.06838339,2546.2,2543.0,4.10213101]
[1769873141834,3.70657586,2545.7,2543.0,4.10213101]
[1769873142135,3.70657586,2545.5,2543.0,4.10695669]
[1769873142935,3.70657586,2545.3,2543.3,3.90521101]
[1769873143127,2.33,2545.2,2543.3,3.90521101]
[1769873143323,3.70657586,2545.1,2543.3,3.90521101]
[1769873145129,3.70657586,2544.9,2543.3,3.90521101]
[1769873145332,3.71141952,2544.9,2543.3,3.90521101]
[1769873147032,0.00484366,2544.9,2543.5,3.90521101]
[1769873147928,2.31184366,2544.9,2543.5,3.90521101]
[1769873148138,3.70657586,2544.8,2543.1,3.90521101]
[1769873148435,3.70657586,2544.8,2543.0,0.00482568]
[1769873149942,2.31184366,2544.9,2543.0,3.91003669]
[1769873149943,3.70657586,2544.6,2543.0,3.91003669]
[1769873150144,3.70657586,2544.6,2543.0,0.00482568]
[1769873150834,2.307,2544.5,2543.3,3.90521101]
[1769873151034,3.70657586,2544.3,2543.0,0.00482568]
[1769873151642,3.70657586,2544.3,2543.0,3.91003669]
[1769873151938,3.70657586,2544.1,2543.0,0.00482568]
[1769873152141,3.70657586,2544.0,2543.0,0.00482568]
[1769873152434,3.70657586,2544.0,2542.1,4.10220101]
[1769873152636,3.70657586,2543.8,2542.1,4.10220101]
[1769873153433,3.70657586,2543.8,2542.1,4.10664993]
[1769873155142,3.70657586,2543.6,2542.1,4.10664993]
[1769873155344,3.70657586,2543.6,2542.1,0.00444892]
[1769873156149,3.70657586,2543.4,2542.1,0.00444892]
[1769873156642,0.30617407,2544.6,2542.1,0.00444892]
[1769873156643,2.329,2543.6,2542.2,3.90521101]
[1769873157647,2.33,2543.6,2542.2,3.90521101]
[1769873157848,3.70657586,2543.7,2542.2,3.90521101]
[1769873158146,0.30617407,2544.6,2542.2,3.90521101]
[1769873158147,6.03657586,2544.0,2542.6,3.90521101]
[1769873158444,3.70657586,2543.9,2542.6,3.90521101]
[1769873158749,2.33,2543.8,2542.6,3.90521101]
[1769873159247,2.33,2543.8,2542.6,4.10215101]
[1769873161344,3.70657586,2544.5,2542.6,4.10215101]
[1769873161546,3.71141952,2544.9,2543.3,3.90521101]
[1769873161744,5.868,2544.8,2543.3,4.10210101]
[1769873161945,6.03357586,2544.7,2543.3,4.10210101]
[1769873162151,3.70657586,2544.6,2543.3,0.19689]
[1769873162343,3.70657586,2544.6,2542.1,0.00444892]
[1769873162344,0.00484366,2544.9,2543.8,3.90521101]
[1769873162553,2.30203478,2546.0,2542.5,6.95377803]
[1769873162554,3.70657586,2545.7,2544.3,3.90521101]
[1769873162845,3.70657586,2545.5,2544.4,0.19681]
[1769873163438,3.541,2545.8,2544.6,3.90521101]
[1769873163646,0.00482544,2545.8,2544.8,3.90521101]
[1769873164249,3.7114013,2545.8,2544.7,0.19678]
[1769873164650,3.7114013,2545.8,2544.6,0.00432065]
[1769873165745,3.70657586,2545.6,2544.6,0.00432065]
[1769873166552,3.70657586,2545.6,2543.6,3.90521101]
[1769873166753,3.70657586,2545.6,2544.0,3.99011301]
[1769873166953,3.71596845,2545.4,2544.0,3.99011301]
[1769873167353,3.72079389,2545.8,2544.3,0.19681]
[1769873167654,3.72079389,2545.8,2544.4,4.18692301]
[1769873167655,2.328,2545.7,2544.4,4.18692301]
[1769873168456,3.71596845,2546.6,2545.0,4.18687301]
[1769873168850,5.868,2546.5,2545.0,4.18687301]
[1769873169156,2.328,2546.4,2545.0,4.18687301]
[1769873169353,3.71596845,2546.6,2545.0,3.99011301]
[1769873169563,3.72067547,2546.6,2545.2,3.99011301]
[1769873170556,0.00470702,2546.6,2545.2,3.99011301]
[1769873170752,3.71596845,2547.4,2545.7,4.18681301]
[1769873170951,3.71596845,2547.0,2545.7,0.1967]
[1769873171155,3.71596845,2547.0,2545.7,4.18681301]
[1769873171954,6.04712841,2547.0,2545.7,4.18681301]
[1769873172653,3.71596845,2546.9,2545.1,5.75403087]
[1769873172958,0.00415996,2547.0,2545.4,3.99011301]
[1769873174262,0.00415996,2547.0,2545.9,3.99011301]
[1769873174665,0.00415996,2547.0,2545.4,3.99011301]
[1769873174666,3.72012841,2547.0,2545.4,3.99011301]
[1769873174959,3.71596845,2546.8,2545.4,3.99011301]
[1769873175359,3.71596845,2546.8,2545.1,0.19675]
[1769873176556,3.91259845,2546.8,2544.5,3.99011301]
[1769873176759,3.71596845,2546.6,2544.5,3.99011301]
[1769873177563,3.71596845,2546.4,2544.7,3.99011301]
[1769873178258,3.71596845,2546.4,2544.6,0.19679]
[1769873178654,3.71596845,2546.4,2544.6,4.18690301]
[1769873179055,3.71596845,2546.4,2544.8,3.99011301]
[1769873179359,3.71596845,2546.8,2545.2,3.99011301]
[1769873179559,6.02196845,2546.8,2545.2,3.99011301]
[1769873179957,3.71596845,2546.7,2545.2,3.99011301]
[1769873180160,3.71596845,2546.7,2545.4,0.19673]
[1769873180370,3.71596845,2546.7,2544.7,4.18689301]
[1769873180659,3.71596845,2546.7,2544.7,3.99011301]
[1769873180856,9.55996845,2546.6,2545.1,3.99011301]
[1769873181057,3.71596845,2546.6,2545.1,4.18686301]
[1769873181256,3.71596845,2546.6,2545.3,3.99011301]
[1769873183266,0.00415996,2547.0,2545.9,3.99011301]
[1769873183862,0.00415996,2547.0,2546.0,4.18679301]
[1769873184769,3.71596845,2548.0,2546.6,3.99011301]
[1769873184969,3.71596845,2548.0,2546.6,4.18675301]
[1769873185160,3.538,2548.4,2545.5,6.95377803]
[1769873185161,3.71596845,2548.4,2547.0,3.99011301]
[1769873185467,3.71596845,2548.4,2547.2,3.99011301]
[1769873185969,0.00479142,2548.4,2547.2,3.99481675]
[1769873186171,3.72075987,2548.4,2547.2,0.00470374]
[1769873186368,3.72075987,2548.4,2547.2,3.99481675]
[1769873187468,0.00479142,2548.4,2547.2,3.99481675]
[1769873187674,0.00479142,2548.4,2547.2,4.19140675]
[1769873190479,0.00479142,2548.4,2547.4,4.18669301]
[1769873190666,3.71596845,2548.8,2547.4,4.18669301]
[1769873191572,3.72011364,2548.8,2547.4,4.18669301]
[1769873191774,3.72011364,2548.8,2547.2,0.00470374]
[1769873191775,0.00414519,2548.8,2547.6,3.99011301]
[1769873192179,3.71596845,2548.7,2547.2,0.00470374]
[1769873192373,0.00414519,2548.8,2547.2,0.00470374]
[1769873192374,3.71596845,2548.5,2547.2,0.00470374]
[1769873192772,3.71596845,2548.5,2547.2,3.99481675]
[1769873193178,3.71596845,2548.5,2547.2,0.00470374]
[1769873193482,3.71596845,2548.5,2546.2,5.75403087]
[1769873193684,0.1965,2548.4,2546.5,3.99011301]
[1769873193982,0.00414519,2548.8,2545.5,27.07]
[1769873193983,0.00414519,2548.8,2547.5,3.99011301]
[1769873194282,3.72011364,2548.8,2547.5,3.99011301]
[1769873194582,3.71596845,2549.3,2548.1,0.19652]
[1769873194880,0.19633,2550.7,2548.5,3.99011301]
[1769873194881,3.71596845,2549.8,2548.5,3.99011301]
[1769873195777,3.72022585,2549.8,2548.5,3.99011301]
[1769873196170,3.72022585,2549.8,2547.8,3.99011301]
[1769873196384,3.71596845,2549.6,2547.8,3.99011301]
[1769873196879,3.71596845,2549.6,2547.7,0.19655]
[1769873197271,3.71596845,2549.6,2547.5,3.54069852]
[1769873197477,0.0042574,2549.8,2547.6,3.84147634]
[1769873197478,3.70437148,2549.4,2547.6,3.84147634]
[1769873197678,3.70437148,2549.2,2547.6,3.84147634]
[1769873198179,3.70437148,2549.2,2548.0,3.84144634]
[1769873198480,3.70437148,2549.2,2547.5,3.64961486]
[1769873198679,3.70437148,2549.0,2547.5,3.64961486]
[1769873199084,3.70437148,2549.0,2547.5,0.00469852]
[1769873199584,3.90084148,2548.8,2546.6,3.84154634]
[1769873199880,3.70437148,2548.6,2546.8,3.84153634]
[1769873200085,3.70437148,2548.4,2546.8,3.84153634]
[1769873200289,3.70437148,2547.5,2545.4,6.95377803]
[1769873200483,3.70437148,2547.1,2545.4,0.0032001]
[1769873201583,3.70437148,2547.1,2545.5,0.19672]
[1769873201774,3.70437148,2547.1,2545.4,0.0032001]
[1769873203491,3.70437148,2547.1,2545.6,0.19671]
[1769873204582,3.70437148,2547.1,2545.4,0.0032001]
[1769873206092,3.70437148,2547.1,2545.4,2.30762077]
[1769873207288,3.70437148,2547.1,2545.4,0.0032001]
[1769873207792,3.68801186,2546.6,2545.4,0.0032001]
[1769873207993,3.68801186,2546.5,2545.4,0.0032001]
[1769873208382,3.68801186,2546.5,2544.9,3.536]
[1769873208589,3.68801186,2546.5,2544.6,0.19679]
[1769873209195,3.68801186,2546.5,2544.8,2.523011]
[1769873209396,3.68801186,2546.5,2544.8,2.52711275]
[1769873209593,3.68801186,2546.5,2544.8,0.00410175]
[1769873209997,3.88467186,2546.3,2544.8,0.00410175]
[1769873210294,3.68801186,2546.1,2544.8,0.00410175]
[1769873210594,3.88469186,2546.1,2544.2,3.536]
[1769873211592,3.88469186,2546.1,2544.2,3.53969758]
[1769873212095,3.68801186,2545.7,2544.2,0.00369758]
[1769873212293,3.68801186,2545.5,2544.2,0.00369758]
[1769873213490,3.88474186,2545.5,2544.2,0.00369758]
[1769873221000,3.68801186,2545.2,2544.2,0.00369758]
[1769873221208,3.88479186,2544.9,2542.9,0.19692]
[1769873221508,3.68801186,2544.8,2542.9,0.19692]
[1769873222002,3.68801186,2544.8,2542.8,2.40166064]
[1769873222204,3.88480186,2544.6,2543.2,3.54035693]
[1769873222407,3.68801186,2544.6,2543.2,5.94073171]
[1769873223003,3.68801186,2544.6,2543.2,3.54035693]
[1769873223404,3.68801186,2544.6,2543.3,2.40037478]
[1769873225110,3.68801186,2544.6,2543.2,3.44035693]
[1769873226013,3.68801186,2544.6,2543.2,5.87219394]
[1769873226610,3.68801186,2545.1,2543.5,2.43183701]
[1769873226808,3.68801186,2545.1,2543.2,3.44035693]
[1769873228108,2.2196866,2545.4,2543.2,0.00335693]
[1769873228109,3.96053985,2544.6,2543.2,0.00335693]
[1769873228309,3.96053985,2544.5,2543.2,2.47240005]
[1769873229308,3.96053985,2544.5,2543.2,0.00335693]
[1769873233413,3.96053985,2544.5,2543.2,2.41336833]
[1769873233618,3.96053985,2544.5,2543.2,0.00335693]
[1769873236121,3.96053985,2544.5,2543.2,2.40783715]
[1769873236321,3.96053985,2544.5,2543.2,0.00335693]
[1769873236916,3.96053985,2545.2,2543.5,2.40448022]
[1769873237114,3.96053985,2545.2,2543.7,2.40448022]
[1769873237311,3.96053985,2545.2,2543.6,5.90050544]
[1769873237524,3.96053985,2545.2,2543.7,8.10811566]
[1769873237716,3.96053985,2545.2,2543.8,2.40448022]
[1769873237911,3.96053985,2545.2,2543.6,5.70363544]
[1769873238129,3.96053985,2545.2,2543.7,5.70363544]
[1769873239329,3.96053985,2545.2,2543.8,5.70363544]
[1769873239621,3.96053985,2545.2,2543.7,5.70363544]
[1769873239924,3.96053985,2544.9,2543.6,2.4363639]
[1769873240222,3.96053985,2544.9,2543.5,5.70363544]
[1769873240424,3.96053985,2544.9,2543.7,8.13999934]
[1769873240620,3.96053985,2544.9,2543.9,5.70363544]
[1769873240817,3.96053985,2544.9,2544.0,5.70363544]
[1769873241015,3.96053985,2545.6,2544.2,5.70363544]
[1769873241316,3.96053985,2545.1,2543.7,5.70363544]
[1769873241917,3.96053985,2545.1,2543.6,5.70363544]
[1769873242121,3.96053985,2545.1,2543.4,5.70363544]
[1769873242824,3.96053985,2545.1,2543.3,5.70363544]
[1769873242825,3.96053985,2544.9,2543.3,5.70363544]
[1769873243018,3.96053985,2544.7,2543.3,5.70363544]
[1769873243819,3.96053985,2544.7,2543.5,2.38337261]
[1769873244027,3.96053985,2544.7,2543.5,8.08700805]
[1769873244228,3.96053985,2544.7,2543.5,5.70363544]
[1769873244922,4.15732985,2544.7,2543.3,5.70363544]
[1769873245125,4.15732985,2544.7,2543.2,0.00335693]
[1769873245526,3.96053985,2544.7,2543.2,2.38672954]
[1769873245729,3.96053985,2544.7,2543.4,5.70363544]
[1769873245928,3.96053985,2544.7,2543.3,5.70363544]
[1769873246327,3.96053985,2544.7,2543.2,5.70699237]
[1769873246528,3.96053985,2544.7,2543.2,0.00335693]
[1769873249125,3.96053985,2544.5,2543.2,0.00335693]
[1769873249331,3.96053985,2544.5,2543.2,2.41148341]
[1769873249632,3.96053985,2544.5,2543.5,5.70363544]
[1769873250629,3.96053985,2544.5,2543.4,5.70363544]
[1769873251336,3.96053985,2544.5,2543.2,0.00335693]
[1769873252130,4.66572965,2544.8,2543.2,0.00335693]
[1769873252131,3.96053985,2544.3,2543.2,0.00335693]
[1769873258839,7.50153985,2544.3,2543.2,0.00335693]
[1769873259137,3.70321779,2544.2,2543.2,0.00335693]
[1769873259338,3.70321779,2544.0,2543.2,0.00335693]
[1769873264646,3.62110937,2544.9,2543.2,2.43323193]
[1769873264846,3.62110937,2544.8,2543.3,8.13351044]
[1769873265045,3.62110937,2544.8,2543.4,5.70363544]
[1769873265242,3.62110937,2544.8,2543.5,2.429875]
[1769873265448,3.62110937,2544.8,2543.7,8.13351044]
[1769873265640,2.336,2544.9,2542.1,13.59189997]
[1769873265641,0.18418896,2543.9,2542.1,13.59189997]
[1769873265840,2.336,2543.8,2542.6,3.99318095]
[1769873266040,0.07126663,2543.8,2542.6,3.99318095]
[1769873266245,0.07126663,2543.8,2542.0,3.95754763]
[1769873266444,2.40726663,2543.8,2542.0,3.95754763]
[1769873266647,2.41029131,2543.8,2542.0,3.96191849]
[1769873271764,0.07429131,2543.8,2542.0,3.96191849]
[1769873272458,4.72914887,2543.7,2542.0,3.96191849]
[1769873272666,0.07429131,2543.8,2542.0,3.96191849]
[1769873272854,4.72915204,2543.7,2542.0,3.96191849]
[1769873273061,0.00302468,2543.8,2542.0,3.96191849]
[1769873273260,4.72914,2543.7,2542.0,3.96191849]
[1769873273468,0.00302468,2543.8,2542.0,3.96191849]
[1769873273667,4.72919802,2543.7,2542.0,3.96191849]
[1769873273867,4.72919802,2543.6,2542.0,3.96191849]
[1769873274071,2.35541403,2543.8,2542.0,3.96191849]
[1769873274369,4.73006927,2543.7,2542.0,3.96191849]
[1769873274567,4.73006927,2543.6,2542.0,3.96191849]
[1769873274765,2.35541403,2543.8,2542.0,3.96191849]
[1769873275064,7.08248016,2543.7,2542.0,3.96191849]
[1769873275565,4.73009081,2543.6,2542.0,3.96191849]
[1769873275762,0.19988468,2543.8,2542.0,3.96191849]
[1769873276070,0.0204771,2543.7,2542.0,3.96191849]
[1769873276270,4.72945196,2543.6,2542.0,3.96191849]
[1769873277465,0.00302468,2543.8,2542.0,4.15890849]
[1769873277769,0.0204771,2543.6,2542.0,4.15890849]
[1769873279171,4.74986868,2543.5,2542.0,3.96191849]
[1769873279374,4.73122613,2543.4,2542.0,3.96191849]
[1769873279575,0.01886314,2543.5,2542.0,3.96191849]
[1769873279767,4.73122628,2543.4,2542.0,3.96191849]
[1769873280072,0.02410289,2543.2,2542.0,0.00437086]
[1769873280275,0.02410289,2542.9,2542.0,0.00437086]
[1769873280475,4.7312251,2542.8,2542.0,0.00437086]
[1769873280874,0.02410289,2542.9,2542.0,0.00437086]
[1769873281875,4.65408073,2543.5,2542.0,0.00437086]
[1769873281876,2.55052657,2543.7,2542.1,3.9811295]
[1769873282074,4.73105864,2543.6,2542.1,3.9811295]
[1769873282289,0.00302468,2543.8,2542.1,3.9811295]
[1769873282576,4.73068191,2543.7,2542.1,3.9811295]
[1769873282870,0.00302468,2543.8,2542.1,3.9811295]
[1769873283078,4.7306939,2543.7,2542.1,3.9811295]
[1769873283274,0.00302468,2543.8,2542.1,3.9811295]
[1769873283475,4.73085765,2543.7,2542.1,3.9811295]
[1769873283677,0.00302468,2543.8,2542.1,3.9811295]
[1769873283872,0.00302468,2543.8,2542.1,4.1781195]
[1769873284270,0.00302468,2543.8,2542.3,3.99318095]
[1769873284472,0.00302468,2543.8,2542.3,4.19015095]
[1769873289188,0.00302468,2543.8,2542.5,3.99251204]
[1769873291684,0.00302468,2543.8,2542.7,0.19694]
[1769873291883,0.06841882,2544.9,2543.0,3.99251204]
[1769873291884,2.35365657,2544.9,2543.0,3.99251204]
[1769873292189,4.64451412,2544.8,2543.0,3.99251204]
[1769873292386,4.64451412,2544.7,2543.0,3.99251204]
[1769873292687,2.35365657,2545.0,2543.0,3.99251204]
[1769873292883,4.64436901,2544.9,2543.0,3.99251204]
[1769873293079,4.64436901,2544.8,2543.0,3.99251204]
[1769873293279,2.35825196,2545.0,2543.0,3.99251204]
[1769873293479,4.64231324,2544.9,2543.0,3.99251204]
[1769873293682,0.00459539,2545.0,2543.0,3.99251204]
[1769873293885,4.64222031,2544.9,2543.0,3.99251204]
[1769873294078,4.64229201,2544.8,2543.0,3.99251204]
[1769873294276,4.83787899,2544.7,2543.0,3.99251204]
[1769873294576,4.64108899,2544.6,2543.0,3.99251204]
[1769873294776,2.35825196,2545.0,2543.3,3.99251204]
[1769873294989,0.00459539,2545.0,2543.3,3.99251204]
[1769873295587,4.63923104,2544.9,2543.3,3.99251204]
[1769873295782,4.63923104,2544.8,2543.3,3.99251204]
[1769873295981,0.01410102,2544.7,2543.3,3.99251204]
[1769873297792,0.01410102,2544.4,2542.9,3.98546152]
[1769873297983,0.0109758,2544.2,2542.9,3.98546152]
[1769873298183,0.0109758,2544.1,2542.9,3.98546152]
[1769873299785,0.0109758,2544.1,2542.5,3.98702413]
[1769873299983,0.02415855,2543.9,2542.5,3.98702413]
[1769873301785,0.02415855,2543.8,2542.5,3.98702413]
[1769873301990,0.02243802,2543.2,2542.0,0.00437086]
[1769873302181,0.02243802,2543.0,2542.0,0.00437086]
[1769873302583,0.02243802,2543.0,2541.8,3.98129302]
[1769873302782,0.02243802,2543.0,2541.8,2.59566388]
[1769873303392,1.40806716,2542.9,2541.8,2.59566388]
[1769873303583,1.40806716,2542.9,2541.8,2.59936205]
[1769873304288,1.35812914,2542.6,2540.5,2.307]
[1769873304796,1.35812914,2542.4,2540.6,3.71641094]
[1769873305392,0.19695,2542.6,2540.6,3.72033256]
[1769873305588,1.35812914,2542.8,2540.6,3.72033256]
[1769873305789,3.66612914,2542.8,2540.9,3.71641094]
[1769873306690,1.4193059,2542.7,2540.9,3.71641094]
[1769873307093,2.308,2542.8,2540.9,3.71641094]
[1769873308593,2.345,2542.9,2540.9,3.71641094]
[1769873309891,0.19691,2543.1,2541.2,3.71641094]
[1769873310297,0.00487982,2543.2,2541.5,3.71641094]
[1769873310993,0.00487982,2543.2,2541.7,3.71641094]
[1769873311191,0.00487982,2543.2,2541.9,3.71641094]
[1769873311395,0.00487982,2543.2,2541.9,3.91341094]
[1769873311797,3.542,2544.1,2542.1,3.71641094]
[1769873312292,3.542,2544.1,2542.7,3.71641094]
[1769873312889,3.54594168,2544.1,2542.7,3.72021842]
[1769873313398,1.32658117,2544.0,2542.7,3.72021842]
[1769873314188,1.52342117,2544.0,2542.7,3.72021842]
[1769873315798,3.54594168,2544.1,2542.7,3.72021842]
[1769873316388,0.00394168,2544.1,2542.7,3.72021842]
[1769873319302,1.4492068,2544.9,2542.9,3.72427662]
[1769873320201,1.45202446,2544.9,2542.9,3.72427662]
[1769873320797,0.00281766,2544.9,2543.1,3.93149194]
[1769873322095,0.00281766,2544.9,2543.1,4.24106373]
[1769873322705,1.44261588,2544.9,2543.1,3.93149194]
[1769873323405,0.00281766,2544.9,2543.1,3.93149194]
[1769873323703,0.00281766,2544.9,2543.1,4.24177712]
[1769873324106,0.00281766,2544.9,2543.5,3.73458194]
[1769873324506,0.00281766,2544.9,2543.5,3.93146194]
[1769873325902,0.19672,2545.6,2543.5,3.93146194]
[1769873327007,0.20164328,2545.6,2543.5,3.93146194]
[1769873327605,1.76085117,2545.6,2543.5,3.93146194]
[1769873327912,1.70071333,2545.4,2543.5,3.73458194]
[1769873329812,1.50398333,2545.2,2543.5,3.73458194]
[1769873330909,1.91252626,2545.3,2543.5,3.73458194]
[1769873331117,1.52621114,2544.7,2543.1,3.73458194]
[1769873331314,1.52621114,2544.6,2543.1,3.73458194]
[1769873332616,1.38328557,2545.2,2543.1,3.73458194]
[1769873333509,1.38328557,2545.5,2543.4,3.73458194]
[1769873333817,1.38328557,2545.5,2543.4,3.93146194]
[1769873337021,1.35211496,2545.4,2543.4,3.93146194]
[1769873338125,3.88,2545.5,2543.4,3.93146194]
[1769873338425,4.5931385,2545.4,2543.4,3.93146194]
[1769873338723,1.34457933,2545.4,2543.4,3.93146194]
[1769873339222,4.59843984,2545.3,2543.4,3.93146194]
[1769873339417,1.34457933,2545.4,2543.4,3.93146194]
[1769873339612,4.59843942,2545.3,2543.4,3.93146194]
[1769873339922,1.34457933,2545.4,2543.4,3.93146194]
[1769873340315,4.60291582,2545.3,2543.4,3.93146194]
[1769873340510,1.34457933,2545.4,2543.4,3.93146194]
[1769873340721,4.60291582,2545.3,2543.4,3.93146194]
[1769873340922,1.34457933,2545.4,2543.4,3.93146194]
[1769873341122,4.60291433,2545.3,2543.4,3.93146194]
[1769873341416,4.60291433,2545.2,2543.4,3.93146194]
[1769873341723,3.68046919,2545.4,2543.4,3.93146194]
[1769873341920,4.60532455,2545.3,2543.4,3.93146194]
[1769873342222,3.88,2545.5,2543.6,3.73458194]
[1769873342429,4.60532443,2545.4,2543.6,3.73458194]
[1769873342622,5.1884258,2545.5,2543.6,3.73458194]
[1769873342828,4.6052543,2545.4,2543.6,3.73458194]
[1769873343129,5.1884258,2545.5,2543.6,3.73458194]
[1769873343328,4.60526928,2545.4,2543.6,3.73458194]
[1769873343528,5.1884258,2545.5,2543.6,3.73458194]
[1769873343831,4.60522974,2545.4,2543.6,3.73458194]
[1769873344030,1.23817058,2545.4,2543.6,3.73458194]
[1769873345226,4.60995326,2545.3,2543.6,3.73458194]
[1769873345427,1.23817058,2545.4,2543.6,3.73458194]
[1769873345622,2.34081314,2545.6,2544.0,3.73458194]
[1769873345828,0.00492328,2545.6,2544.0,3.73458194]
[1769873347936,0.00492328,2545.6,2544.3,3.91594957]
[1769873348230,2.33588986,2546.3,2544.7,3.91594957]
[1769873348428,3.2637571,2546.6,2544.7,4.11272957]
[1769873348732,4.60823946,2546.5,2544.9,4.11271957]
[1769873349035,3.26868038,2546.9,2544.9,4.11271957]
[1769873349237,4.6076532,2546.8,2544.9,4.11747612]
[1769873349438,0.93651304,2546.9,2544.9,4.11747612]
[1769873349731,4.60299816,2546.8,2544.9,4.11747612]
[1769873350039,0.93651304,2546.9,2545.0,3.91594957]
[1769873350232,4.60295248,2546.8,2545.0,3.91594957]
[1769873350429,0.93651304,2546.9,2545.0,3.91594957]
[1769873350630,0.89071052,2546.7,2545.0,3.91594957]
[1769873350830,5.49016099,2546.6,2545.0,3.91594957]
[1769873351136,4.59945047,2546.5,2545.0,3.91594957]
[1769873351335,0.89071052,2546.6,2545.0,3.91594957]
[1769873351635,0.89071052,2546.4,2545.0,3.91594957]
[1769873352025,5.40090904,2546.7,2545.0,3.91594957]
[1769873352232,4.59784541,2546.6,2545.0,3.91594957]
[1769873352430,4.59784541,2546.5,2545.0,3.91594957]
[1769873352631,5.40090904,2546.7,2545.0,3.91594957]
[1769873352831,4.59616439,2546.6,2545.0,3.91594957]
[1769873353028,2.33588986,2546.8,2545.0,3.91594957]
[1769873353231,2.33472252,2546.9,2545.0,3.91594957]
[1769873353937,3.0757417,2546.9,2545.0,3.91594957]
[1769873354138,0.73492048,2546.7,2545.0,3.91594957]
[1769873354531,0.73492048,2546.5,2545.0,3.91594957]
[1769873355935,3.00137843,2546.8,2545.0,3.91594957]
[1769873356134,0.66548857,2546.8,2545.0,3.91594957]
[1769873356338,2.332,2546.7,2545.0,3.91594957]
[1769873358143,0.20034252,2546.9,2545.0,3.91594957]
[1769873360143,0.64698384,2546.5,2545.0,3.91594957]
[1769873360939,0.64698384,2546.5,2544.9,3.54375655]
[1769873360940,0.64698384,2546.0,2544.9,0.00475655]
[1769873361145,0.64698384,2545.8,2544.4,3.91594957]
[1769873361450,0.64698384,2545.7,2544.4,3.91594957]
[1769873362142,0.84369384,2545.7,2544.4,3.9187704]
[1769873362549,0.19671,2545.7,2544.4,3.9187704]
[1769873362747,5.844,2545.9,2544.4,3.9187704]
[1769873362948,4.57776495,2545.8,2544.4,3.9187704]
[1769873363149,0.62412696,2545.7,2544.4,3.9187704]
[1769873364850,2.7131766,2545.5,2544.4,0.00282083]
[1769873365148,4.58050926,2545.4,2543.8,3.91594957]